fUST/lending_fUST_20240311
["ID","MTS","AMOUNT","RATE_DAILY","PERIOD"]
[318243669,1710129035824,-11022.23,0.00023999,2]
[318243670,1710129035835,-11022.23,0.00023999,2]
[318243671,1710129035845,-11022.23,0.00023999,2]
[318243672,1710129035855,-11022.23,0.00023999,2]
[318243673,1710129035864,-11022.23,0.00023999,2]
[318243674,1710129035874,-2760.28318441,0.00023999,2]
[318243711,1710129043408,-347.15392377,0.00023894,2]
[318243712,1710129043417,-1506.12096125,0.00023998,2]
[318243713,1710129043429,-341.07903875,0.00023998,2]
[318243714,1710129043438,-1847.2,0.00023998,2]
[318243715,1710129043447,-782.00001657,0.00023998,2]
[318243727,1710129048706,-422.80398519,0.00023895,2]
[318243728,1710129048715,-146.63686868,0.00023998,2]
[318243729,1710129048725,-492.69755579,0.00023998,2]
[318243730,1710129048734,-607.64905388,0.00023998,2]
[318243731,1710129048745,-269.00238647,0.00023998,2]
[318243732,1710129048755,-8261.94681559,0.00023999,2]
[318243733,1710129048765,-11022.23,0.00023999,2]
[318243734,1710129048775,-11022.27728108,0.00023999,2]
[318243735,1710129048784,-81319.30678369,0.00024,10]
[318243736,1710129048795,-40098.18476173,0.00024,10]
[318243737,1710129048807,-291996.48452407,0.00024,10]
[318243897,1710130238639,-295.12955601,0.00022,2]
[318243900,1710130238649,-1219.11010305,0.00022,2]
[318243902,1710130238658,-423.0,0.00022,2]
[318243904,1710130238667,-423.0,0.00022192,2]
[318243905,1710130238676,-177.925007,0.00022418,2]
[318243907,1710130238685,-1506.19658719,0.00022903,2]
[318243910,1710130238694,-399.93834789,0.00023,2]
[318243912,1710130238703,-423.0,0.00023014,2]
[318243914,1710130238712,-3617.84674071,0.00023278,5]
[318243915,1710130238721,-500.0,0.00023899,2]
[318243917,1710130238730,-500.0,0.00023899,2]
[318243919,1710130238739,-501.68409743,0.00023899,2]
[318243921,1710130238748,-500.0,0.00023899,2]
[318243923,1710130238757,-156.21134143,0.00023899,2]
[318243925,1710130238765,-169.31838882,0.00023899,2]
[318243927,1710130238774,-506.17,0.00023899,2]
[318243929,1710130238783,-506.17,0.00023899,2]
[318243931,1710130238793,-506.17,0.00023899,2]
[318243933,1710130238802,-506.17,0.00023899,2]
[318243935,1710130238811,-506.17,0.00023899,2]
[318243937,1710130238820,-506.17,0.00023899,2]
[318243940,1710130238831,-506.17,0.00023899,2]
[318243942,1710130238840,-506.17,0.00023899,2]
[318243944,1710130238849,-500.0,0.00023899,2]
[318243946,1710130238858,-358.31962556,0.00023899,2]
[318243948,1710130238867,-500.0,0.00023899,2]
[318243950,1710130238877,-500.0,0.00023899,2]
[318243953,1710130238898,-500.0,0.00023899,2]
[318243955,1710130238910,-209.26926446,0.00023899,2]
[318243957,1710130238919,-417.26523691,0.00023899,2]
[318243959,1710130238929,-192.66637702,0.00023899,2]
[318243961,1710130238938,-59306.49114892,0.000239,2]
[318244109,1710130240593,-137176.32140694,0.000239,2]
[318244880,1710131438788,-321.99580067,0.00021799,2]
[318244882,1710131438798,-928.63688525,0.00021799,2]
[318244884,1710131438807,-351.4089094,0.000218,2]
[318244886,1710131438816,-328.0,0.00022,2]
[318244888,1710131438825,-328.0,0.00022192,2]
[318244890,1710131438834,-177.925007,0.00022201,2]
[318244892,1710131438843,-313.79095567,0.00022903,2]
[318244894,1710131438852,-3534.40180493,0.00022999,2]
[318244896,1710131438864,-432.25340078,0.00022999,2]
[318244898,1710131438875,-500.0,0.00022999,2]
[318245093,1710131440739,-3782.01948429,0.00022999,2]
[318245094,1710131440747,-2323.31186719,0.00023,2]
[318245366,1710131443799,-8646.48813281,0.00023,2]
[318245368,1710131443808,-328.0,0.00023014,2]
[318245370,1710131443818,-500.0,0.00023898,2]
[318245372,1710131443827,-500.0,0.00023898,2]
[318245374,1710131443836,-500.0,0.00023898,2]
[318245376,1710131443845,-500.0,0.00023898,2]
[318245378,1710131443854,-500.0,0.00023898,2]
[318245380,1710131443863,-500.0,0.00023898,2]
[318245382,1710131443873,-1254.41,0.00023898,2]
[318245384,1710131443882,-1254.41,0.00023898,2]
[318245386,1710131443891,-500.0,0.00023898,2]
[318245388,1710131443900,-500.0,0.00023898,2]
[318245390,1710131443909,-906.45,0.00023898,2]
[318245392,1710131443918,-906.45,0.00023898,2]
[318245395,1710131443927,-500.0,0.00023898,2]
[318245397,1710131443937,-500.0,0.00023898,2]
[318245399,1710131443946,-2023.99,0.00023898,2]
[318245401,1710131443956,-2023.99,0.00023898,2]
[318245403,1710131443965,-2870.44242631,0.00023898,2]
[318245408,1710131444002,-1868.00464911,0.00023898,2]
[318245712,1710131446960,-420.858,0.00022998,2]
[318245714,1710131446970,-519.94292458,0.00023898,2]
[318245716,1710131446979,-5258.39,0.00023898,2]
[318245718,1710131446988,-263.60146176,0.00023898,2]
[318245720,1710131446997,-500.0,0.00023899,2]
[318245722,1710131447006,-500.0,0.00023899,2]
[318245724,1710131447015,-500.0,0.00023899,2]
[318245726,1710131447024,-500.0,0.00023899,2]
[318245728,1710131447034,-500.0,0.00023899,2]
[318245730,1710131447043,-500.0,0.00023899,2]
[318245732,1710131447052,-500.0,0.00023899,2]
[318245734,1710131447060,-549.96873322,0.00023899,2]
[318245736,1710131447069,-500.0,0.00023899,2]
[318245738,1710131447079,-500.0,0.00023899,2]
[318245740,1710131447088,-500.0,0.00023899,2]
[318245742,1710131447097,-500.0,0.00023899,2]
[318245744,1710131447106,-500.0,0.00023899,2]
[318245746,1710131447115,-500.0,0.00023899,2]
[318245748,1710131447124,-500.0,0.00023899,2]
[318245750,1710131447133,-500.0,0.00023899,2]
[318245752,1710131447143,-500.0,0.00023899,2]
[318245754,1710131447153,-500.0,0.00023899,2]
[318245756,1710131447162,-500.0,0.00023899,2]
[318245758,1710131447171,-500.0,0.00023899,2]
[318245760,1710131447180,-1254.41,0.00023899,2]
[318245762,1710131447189,-1254.41,0.00023899,2]
[318245764,1710131447198,-1254.41,0.00023899,2]
[318245766,1710131447208,-500.0,0.00023899,2]
[318245769,1710131447218,-500.0,0.00023899,2]
[318245771,1710131447228,-500.0,0.00023899,2]
[318245773,1710131447237,-906.45,0.00023899,2]
[318245775,1710131447247,-906.45,0.00023899,2]
[318245777,1710131447257,-906.45,0.00023899,2]
[318245779,1710131447267,-500.0,0.00023899,2]
[318245781,1710131447276,-500.0,0.00023899,2]
[318245783,1710131447287,-500.0,0.00023899,2]
[318245784,1710131447296,-500.0,0.00023899,2]
[318245785,1710131447305,-500.0,0.00023899,2]
[318245786,1710131447314,-213.98908664,0.00023899,2]
[318245787,1710131447324,-500.0,0.00023899,2]
[318245788,1710131447334,-500.0,0.00023899,2]
[318245790,1710131447344,-546.38239429,0.00023899,2]
[318245792,1710131447353,-500.0,0.00023899,2]
[318245794,1710131447362,-500.0,0.00023899,2]
[318245796,1710131447372,-500.0,0.00023899,2]
[318245798,1710131447382,-500.0,0.00023899,2]
[318245800,1710131447392,-500.0,0.00023899,2]
[318245802,1710131447401,-500.0,0.00023899,2]
[318245803,1710131447410,-2023.99,0.00023899,2]
[318245804,1710131447420,-2023.99,0.00023899,2]
[318245805,1710131447430,-2023.99,0.00023899,2]
[318245806,1710131447440,-5258.39,0.00023899,2]
[318245807,1710131447449,-5258.39,0.00023899,2]
[318245808,1710131447459,-5258.39,0.00023899,2]
[318245809,1710131447468,-499.07008966,0.00023899,2]
[318245810,1710131447477,-500.0,0.00023899,2]
[318245811,1710131447486,-512.78077934,0.00023899,2]
[318245812,1710131447496,-500.0,0.00023899,2]
[318245813,1710131447505,-356.52145649,0.00023899,2]
[318245814,1710131447514,-387.56364571,0.00023899,2]
[318245815,1710131447523,-1679.02264609,0.000239,2]
[318246715,1710131716350,600.0,0.0002488,40]
[318246767,1710132632744,-280.572,0.00020997,2]
[318246769,1710132632754,-321.99580067,0.00020998,2]
[318246771,1710132632763,-14198.13307415,0.00021,2]
[318246773,1710132632772,-205.0,0.00022,2]
[318246775,1710132632781,-205.0,0.00022192,2]
[318246777,1710132632791,-246.31352131,0.0002278,2]
[318246779,1710132632800,-205.0,0.00023014,2]
[318246781,1710132632809,-500.0,0.00023898,2]
[318246783,1710132632819,-500.0,0.00023898,2]
[318246785,1710132632828,-500.0,0.00023898,2]
[318246787,1710132632837,-504.34008846,0.00023898,2]
[318246789,1710132632846,-500.0,0.00023898,2]
[318246791,1710132632855,-500.0,0.00023898,2]
[318246793,1710132632864,-500.0,0.00023898,2]
[318246795,1710132632872,-500.0,0.00023898,2]
[318246797,1710132632882,-500.0,0.00023899,2]
[318246799,1710132632891,-500.0,0.00023899,2]
[318246801,1710132632899,-500.0,0.00023899,2]
[318246803,1710132632908,-500.0,0.00023899,2]
[318246805,1710132632918,-500.0,0.00023899,2]
[318246806,1710132632927,-500.0,0.00023899,2]
[318246809,1710132632937,-500.0,0.00023899,2]
[318246811,1710132632946,-500.0,0.00023899,2]
[318246812,1710132632955,-500.0,0.00023899,2]
[318246814,1710132632964,-500.0,0.00023899,2]
[318246816,1710132632975,-500.0,0.00023899,2]
[318246819,1710132632984,-293.84987582,0.00023899,2]
[318246821,1710132632993,-500.0,0.00023899,2]
[318246822,1710132633002,-500.0,0.00023899,2]
[318246824,1710132633012,-500.0,0.00023899,2]
[318246827,1710132633022,-500.0,0.00023899,2]
[318246829,1710132633031,-500.0,0.00023899,2]
[318246830,1710132633040,-456.39196902,0.00023899,2]
[318246833,1710132633050,-993.08,0.00023899,2]
[318246835,1710132633059,-993.08,0.00023899,2]
[318246836,1710132633068,-993.08,0.00023899,2]
[318246839,1710132633077,-993.08,0.00023899,2]
[318246841,1710132633087,-500.0,0.00023899,2]
[318246843,1710132633096,-500.0,0.00023899,2]
[318246845,1710132633104,-500.0,0.00023899,2]
[318246847,1710132633114,-500.0,0.00023899,2]
[318246849,1710132633123,-500.0,0.00023899,2]
[318246851,1710132633132,-1602.33,0.00023899,2]
[318246852,1710132633142,-1602.33,0.00023899,2]
[318246854,1710132633151,-1602.33,0.00023899,2]
[318246856,1710132633160,-1602.33,0.00023899,2]
[318246858,1710132633169,-717.61,0.00023899,2]
[318246860,1710132633178,-717.61,0.00023899,2]
[318246862,1710132633187,-717.61,0.00023899,2]
[318246864,1710132633196,-717.61,0.00023899,2]
[318246866,1710132633205,-500.0,0.00023899,2]
[318246868,1710132633215,-500.0,0.00023899,2]
[318246870,1710132633224,-500.0,0.00023899,2]
[318246873,1710132633233,-500.0,0.00023899,2]
[318246874,1710132633243,-4162.9,0.00023899,2]
[318246876,1710132633252,-4162.9,0.00023899,2]
[318246878,1710132633261,-4162.9,0.00023899,2]
[318246881,1710132633272,-4162.9,0.00023899,2]
[318246883,1710132633281,-434.04890543,0.00023899,2]
[318246885,1710132633292,-11647.98447124,0.000239,2]
[318247225,1710132643067,-36633.50306582,0.000239,2]
[318247227,1710132643079,-319.79214883,0.000239,2]
[318247281,1710132646236,-71941.44220786,0.000239,2]
[318247282,1710132646246,-1870.92559806,0.000239,2]
[318247283,1710132646256,-6286.72253234,0.00023974,2]
[318247284,1710132646266,-500.0,0.00023997,2]
[318247285,1710132646276,-500.0,0.00023997,2]
[318247286,1710132646286,-500.0,0.00023997,2]
[318247287,1710132646296,-500.0,0.00023997,2]
[318247288,1710132646305,-993.08,0.00023997,2]
[318247289,1710132646314,-500.0,0.00023997,2]
[318247290,1710132646323,-1602.33,0.00023997,2]
[318247291,1710132646332,-717.61,0.00023997,2]
[318247292,1710132646344,-500.0,0.00023997,2]
[318247293,1710132646353,-4162.9,0.00023997,2]
[318247294,1710132646362,-155.28910308,0.00023998,2]
[318247295,1710132646371,-155.8340302,0.00023998,2]
[318247296,1710132646380,-717.38928937,0.00023998,2]
[318247297,1710132646391,-207.34798619,0.00023998,2]
[318247298,1710132646401,-256.36699185,0.00023998,2]
[318247299,1710132646412,-926.98038495,0.00023998,2]
[318247300,1710132646423,-289.99911217,0.00023998,2]
[318247301,1710132646433,-682.32366189,0.00023998,2]
[318247302,1710132646442,-184.32470784,0.00023998,2]
[318247303,1710132646451,-211.97574014,0.00023998,2]
[318247304,1710132646461,-155.27835093,0.00023998,2]
[318247305,1710132646470,-500.0,0.00023998,2]
[318247306,1710132646479,-500.0,0.00023998,2]
[318247307,1710132646488,-155.43017032,0.00023998,2]
[318247308,1710132646497,-500.0,0.00023998,2]
[318247309,1710132646506,-500.0,0.00023998,2]
[318247310,1710132646515,-500.0,0.00023998,2]
[318247311,1710132646524,-220.72305032,0.00023998,2]
[318247312,1710132646533,-500.0,0.00023998,2]
[318247313,1710132646542,-500.0,0.00023998,2]
[318247314,1710132646552,-500.0,0.00023998,2]
[318247315,1710132646561,-993.08,0.00023998,2]
[318247316,1710132646571,-993.08,0.00023998,2]
[318247317,1710132646581,-993.08,0.00023998,2]
[318247318,1710132646590,-500.0,0.00023998,2]
[318247319,1710132646599,-501.51932743,0.00023998,2]
[318247320,1710132646608,-1602.33,0.00023998,2]
[318247321,1710132646617,-1602.33,0.00023998,2]
[318247322,1710132646627,-1602.33,0.00023998,2]
[318247323,1710132646636,-717.61,0.00023998,2]
[318247324,1710132646647,-717.61,0.00023998,2]
[318247325,1710132646657,-717.61,0.00023998,2]
[318247326,1710132646666,-500.0,0.00023998,2]
[318247327,1710132646676,-500.0,0.00023998,2]
[318247328,1710132646687,-500.0,0.00023998,2]
[318247329,1710132646696,-4162.9,0.00023998,2]
[318247330,1710132646706,-4162.9,0.00023998,2]
[318247331,1710132646715,-4162.9,0.00023998,2]
[318247332,1710132646725,-3508.5194385,0.00023999,2]
[318247333,1710132646735,-645.90700391,0.00023999,2]
[318247334,1710132646745,-252.60320783,0.00023999,2]
[318247335,1710132646754,-500.0,0.00023999,2]
[318247336,1710132646763,-500.0,0.00023999,2]
[318247337,1710132646773,-335.70538962,0.00023999,2]
[318247338,1710132646783,-500.0,0.00023999,2]
[318247339,1710132646792,-500.0,0.00023999,2]
[318247340,1710132646801,-500.0,0.00023999,2]
[318247341,1710132646811,-411.32634206,0.00023999,2]
[318247342,1710132646820,-993.08,0.00023999,2]
[318247343,1710132646830,-993.08,0.00023999,2]
[318247344,1710132646839,-993.08,0.00023999,2]
[318247345,1710132646849,-993.08,0.00023999,2]
[318247346,1710132646857,-989.66735666,0.00023999,2]
[318247352,1710133428678,10000.0,0.0002,2]
[318247353,1710133437108,10000.0,0.0002,2]
[318247354,1710133449342,10000.0,0.0002,2]
[318247355,1710133455786,10000.0,0.0002,2]
[318247356,1710133569523,217.84716341,0.000189,2]
[318247357,1710133705352,1948.9312739,0.00019933,2]
[318247358,1710133743543,166.867524,0.00019816,2]
[318247365,1710133785313,70240.19491007,0.000199,2]
[318247436,1710133832723,-233.81,0.00020154,2]
[318247437,1710133832733,-321.99580067,0.00020155,2]
[318247438,1710133832743,-682.68332196,0.00020156,2]
[318247439,1710133832753,-2146.0987529,0.00020168,2]
[318247440,1710133832763,-235.15146,0.00020311,2]
[318247441,1710133832772,-1709.32389743,0.00020423,2]
[318247442,1710133832784,-462.228,0.00020423,2]
[318247443,1710133832797,-828.44810257,0.00020423,2]
[318247444,1710133832806,-196.07210742,0.000219,2]
[318247445,1710133832816,-1454.09299065,0.00022,2]
[318247446,1710133832828,-439.565,0.00022,2]
[318247447,1710133832840,-325.14397417,0.00022,2]
[318247469,1710133838231,-5957.64909485,0.00022,2]
[318247725,1710133843168,-32943.87459408,0.00022,2]
[318247727,1710133843180,-293.53999992,0.00022,2]
[318247729,1710133843194,-2103.43290588,0.00022,2]
[318247731,1710133843206,-3311.85923669,0.00022,2]
[318247784,1710133848476,-2385.81958545,0.00022,2]
[318247786,1710133848486,-251.36702104,0.00022,2]
[318247787,1710133848495,-203.0,0.00022,2]
[318247788,1710133848505,-203.0,0.00022192,2]
[318247789,1710133848514,-3606.80077085,0.00022597,2]
[318247790,1710133848523,-170.681094,0.00022606,2]
[318247791,1710133848532,-203.0,0.00023014,2]
[318247792,1710133848540,-153.0,0.00023141,2]
[318247793,1710133848550,-153.0,0.00023141,2]
[318247794,1710133848567,-153.0,0.00023141,2]
[318247795,1710133848579,-153.0,0.00023141,2]
[318247796,1710133848588,-153.0,0.00023141,2]
[318247797,1710133848598,-302.0529343,0.00023141,2]
[318247798,1710133848607,-3941.1412537,0.00023277,2]
[318247799,1710133848617,-1394.44409983,0.00023278,5]
[318247800,1710133848626,-500.0,0.00023561,2]
[318247801,1710133848635,-200.37,0.000238,2]
[318247802,1710133848644,-500.0,0.00023897,2]
[318247803,1710133848654,-500.0,0.00023897,2]
[318247804,1710133848664,-500.0,0.00023898,2]
[318247805,1710133848674,-500.0,0.00023898,2]
[318247806,1710133848684,-500.0,0.00023898,2]
[318247807,1710133848694,-500.0,0.00023898,2]
[318247808,1710133848703,-496.9084633,0.00023898,2]
[318247809,1710133848712,-500.0,0.00023898,2]
[318247810,1710133848722,-500.0,0.00023898,2]
[318247811,1710133848731,-500.0,0.00023898,2]
[318247812,1710133848740,-500.0,0.00023898,2]
[318247813,1710133848750,-500.0,0.00023898,2]
[318247814,1710133848760,-1236.88,0.00023898,2]
[318247815,1710133848769,-1236.88,0.00023898,2]
[318247816,1710133848779,-553.94,0.00023898,2]
[318247817,1710133848788,-553.94,0.00023898,2]
[318247818,1710133848798,-2894.86,0.00023898,2]
[318247819,1710133848807,-83.91977753,0.00023898,2]
[318248029,1710135038440,-155.14894299,0.00020992,2]
[318248030,1710135038449,-269.23239559,0.00020993,2]
[318248031,1710135038458,-155.14894299,0.00020994,2]
[318248032,1710135038467,-928.63688525,0.00020994,2]
[318248034,1710135038477,-1484.88344104,0.00021,2]
[318248074,1710135048066,-1423.62286778,0.00021,2]
[318248075,1710135048077,-292.60672812,0.00021177,2]
[318248076,1710135048086,-169.0,0.00022,2]
[318248077,1710135048095,-170.681094,0.00022001,2]
[318248078,1710135048105,-216.9830576,0.00022015,2]
[318248079,1710135048114,-1660.2946966,0.00022177,2]
[318248080,1710135048124,-169.0,0.00022192,2]
[318248081,1710135048134,-3717.15781728,0.00023,2]
[318248082,1710135048143,-169.0,0.00023014,2]
[318248083,1710135048152,-151.0,0.00023206,2]
[318248084,1710135048162,-12066.78080001,0.00023898,2]
[318248085,1710135048173,-395.69469991,0.00023898,2]
[318248086,1710135048182,-5765.58653598,0.00023898,5]
[318248087,1710135048191,-2000.0,0.000239,5]
[318248088,1710135048205,-166.247444,0.000239,2]
[318248089,1710135048214,-2000.0,0.0002391,5]
[318248090,1710135048223,-2000.0,0.0002392,5]
[318248091,1710135048233,-2000.0,0.0002393,5]
[318248092,1710135048242,-2000.0,0.0002394,5]
[318248093,1710135048251,-2000.0,0.0002395,5]
[318248094,1710135048260,-2000.0,0.0002396,5]
[318248095,1710135048269,-3004.7472,0.0002397,5]
[318248096,1710135048278,-1953.04969909,0.00023974,2]
[318248097,1710135048288,-500.0,0.00023997,2]
[318248098,1710135048298,-500.0,0.00023997,2]
[318248099,1710135048307,-500.0,0.00023997,2]
[318248100,1710135048316,-1133.81,0.00023997,2]
[318248101,1710135048325,-1133.81,0.00023997,2]
[318248102,1710135048336,-507.78,0.00023997,2]
[318248103,1710135048345,-507.78,0.00023997,2]
[318248104,1710135048358,-500.0,0.00023997,2]
[318248105,1710135048367,-500.0,0.00023997,2]
[318248106,1710135048377,-2770.75,0.00023997,2]
[318248107,1710135048386,-2770.75,0.00023997,2]
[318248108,1710135048397,-1474.17492676,0.00023998,2]
[318248109,1710135048406,-155.45345783,0.00023998,2]
[318248110,1710135048416,-155.14894299,0.00023998,2]
[318248111,1710135048426,-238.88134012,0.00023998,2]
[318248112,1710135048436,-735.59659855,0.00023998,2]
[318248113,1710135048447,-186.43811292,0.00023998,2]
[318248114,1710135048456,-155.33256208,0.00023998,2]
[318248115,1710135048465,-323.55065439,0.00023998,2]
[318248116,1710135048474,-682.08775671,0.00023998,2]
[318248117,1710135048483,-321.41595813,0.00023998,2]
[318248118,1710135048492,-3941.1412537,0.00023998,2]
[318248119,1710135048501,-189.11670953,0.00023998,2]
[318248120,1710135048509,-624.13231565,0.00023998,2]
[318248121,1710135048518,-211.97574014,0.00023998,2]
[318248122,1710135048528,-155.916356,0.00023998,2]
[318248123,1710135048537,-500.0,0.00023998,2]
[318248124,1710135048545,-500.0,0.00023998,2]
[318248125,1710135048554,-500.0,0.00023998,2]
[318248126,1710135048564,-500.0,0.00023998,2]
[318248127,1710135048573,-500.0,0.00023998,2]
[318248128,1710135048582,-415.77289821,0.00023998,2]
[318248129,1710135048591,-15253.15738836,0.00023998,2]
[318248130,1710135048600,-539.02796676,0.00023998,2]
[318248131,1710135048619,-500.0,0.00023998,2]
[318248132,1710135048630,-500.0,0.00023998,2]
[318248133,1710135048640,-528.48551733,0.00023998,2]
[318248134,1710135048649,-192.15464007,0.00023998,2]
[318248135,1710135048659,-500.0,0.00023998,2]
[318248136,1710135048668,-500.0,0.00023998,2]
[318248137,1710135048677,-500.0,0.00023998,2]
[318248138,1710135048687,-500.0,0.00023998,2]
[318248139,1710135048696,-1133.81,0.00023998,2]
[318248140,1710135048706,-1133.81,0.00023998,2]
[318248141,1710135048716,-507.78,0.00023998,2]
[318248142,1710135048725,-507.78,0.00023998,2]
[318248143,1710135048735,-598.78162676,0.00023998,2]
[318248144,1710135048744,-2770.75,0.00023998,2]
[318248145,1710135048753,-2770.75,0.00023998,2]
[318248146,1710135048763,-1215.50290622,0.00023999,2]
[318248147,1710135048773,-218.88870456,0.00023999,2]
[318248148,1710135048782,-155.65915715,0.00023999,2]
[318248149,1710135048792,-500.0,0.00023999,2]
[318248150,1710135048801,-500.0,0.00023999,2]
[318248151,1710135048810,-500.0,0.00023999,2]
[318248152,1710135048820,-500.0,0.00023999,2]
[318248153,1710135048829,-500.0,0.00023999,2]
[318248154,1710135048838,-500.0,0.00023999,2]
[318248155,1710135048848,-500.0,0.00023999,2]
[318248156,1710135048857,-500.0,0.00023999,2]
[318248157,1710135048866,-500.0,0.00023999,2]
[318248158,1710135048876,-500.0,0.00023999,2]
[318248159,1710135048886,-500.0,0.00023999,2]
[318248160,1710135048895,-500.0,0.00023999,2]
[318248161,1710135048905,-500.0,0.00023999,2]
[318248162,1710135048914,-500.0,0.00023999,2]
[318248163,1710135048924,-500.0,0.00023999,2]
[318248164,1710135048933,-500.0,0.00023999,2]
[318248165,1710135048943,-500.0,0.00023999,2]
[318248166,1710135048954,-346.28921748,0.00023999,2]
[318248167,1710135048963,-1133.81,0.00023999,2]
[318248168,1710135048972,-1133.81,0.00023999,2]
[318248169,1710135048981,-1133.81,0.00023999,2]
[318248170,1710135048991,-1133.81,0.00023999,2]
[318248171,1710135049000,-1133.81,0.00023999,2]
[318248172,1710135049009,-1133.81,0.00023999,2]
[318248173,1710135049019,-1133.81,0.00023999,2]
[318248174,1710135049028,-1133.81,0.00023999,2]
[318248175,1710135049039,-1133.81,0.00023999,2]
[318248176,1710135049048,-1133.81,0.00023999,2]
[318248177,1710135049058,-1133.81,0.00023999,2]
[318248178,1710135049067,-1133.81,0.00023999,2]
[318248179,1710135049076,-1133.81,0.00023999,2]
[318248180,1710135049088,-1133.81,0.00023999,2]
[318248181,1710135049097,-1133.81,0.00023999,2]
[318248182,1710135049107,-1133.81,0.00023999,2]
[318248183,1710135049117,-1133.81,0.00023999,2]
[318248184,1710135049126,-1133.81,0.00023999,2]
[318248185,1710135049135,-1133.81,0.00023999,2]
[318248186,1710135049145,-1133.90224322,0.00023999,2]
[318248187,1710135049155,-507.78,0.00023999,2]
[318248188,1710135049164,-507.78,0.00023999,2]
[318248189,1710135049174,-507.78,0.00023999,2]
[318248190,1710135049183,-507.78,0.00023999,2]
[318248191,1710135049193,-507.78,0.00023999,2]
[318248192,1710135049203,-507.78,0.00023999,2]
[318248193,1710135049213,-507.78,0.00023999,2]
[318248194,1710135049222,-507.78,0.00023999,2]
[318248195,1710135049231,-507.78,0.00023999,2]
[318248196,1710135049241,-507.78,0.00023999,2]
[318248197,1710135049250,-507.78,0.00023999,2]
[318248198,1710135049259,-507.78,0.00023999,2]
[318248199,1710135049268,-507.78,0.00023999,2]
[318248200,1710135049277,-507.78,0.00023999,2]
[318248201,1710135049287,-507.78,0.00023999,2]
[318248202,1710135049297,-507.78,0.00023999,2]
[318248203,1710135049306,-507.78,0.00023999,2]
[318248204,1710135049317,-507.78,0.00023999,2]
[318248205,1710135049333,-507.78,0.00023999,2]
[318248206,1710135049345,-507.92820014,0.00023999,2]
[318248207,1710135049356,-2770.75,0.00023999,2]
[318248208,1710135049365,-2770.75,0.00023999,2]
[318248209,1710135049375,-2770.75,0.00023999,2]
[318248210,1710135049384,-2770.75,0.00023999,2]
[318248211,1710135049394,-2770.75,0.00023999,2]
[318248212,1710135049403,-2770.75,0.00023999,2]
[318248213,1710135049412,-2770.75,0.00023999,2]
[318248214,1710135049422,-2770.75,0.00023999,2]
[318248215,1710135049431,-2770.75,0.00023999,2]
[318248216,1710135049440,-2770.75,0.00023999,2]
[318248217,1710135049451,-2770.75,0.00023999,2]
[318248218,1710135049461,-2770.75,0.00023999,2]
[318248219,1710135049470,-2770.75,0.00023999,2]
[318248220,1710135049479,-2770.75,0.00023999,2]
[318248221,1710135049488,-2770.75,0.00023999,2]
[318248222,1710135049498,-2770.75,0.00023999,2]
[318248223,1710135049507,-2770.75,0.00023999,2]
[318248224,1710135049516,-2770.75,0.00023999,2]
[318248225,1710135049526,-2770.75,0.00023999,2]
[318248226,1710135049535,-2770.82435208,0.00023999,2]
[318248227,1710135049544,-52235.33174112,0.00024,10]
[318248228,1710135065094,311.28270944,0.0002,2]
[318248229,1710135108113,5765.58653598,0.0002,5]
[318248230,1710135124099,3003.87058524,0.0002,5]
[318248231,1710135144094,3003.87058524,0.0002,5]